fUST/lending_fUST_20241230
["ID","MTS","AMOUNT","RATE_DAILY","PERIOD"]
[347061467,1735488377914,18373.7039669,8.295e-05,2]
[347061470,1735488510252,694.84,0.00020886,60]
[347061488,1735488632076,-300.0,9.182e-05,2]
[347061490,1735488632086,-500.0,9.183e-05,2]
[347061492,1735488632096,-500.0,9.183e-05,2]
[347061493,1735488632106,-265.08991877,9.183e-05,2]
[347061494,1735488632115,-500.64,9.183e-05,2]
[347061496,1735488632125,-500.0,9.183e-05,2]
[347061497,1735488632135,-502.67756713,9.183e-05,2]
[347061498,1735488632144,-500.0,9.183e-05,2]
[347061499,1735488632153,-1521.15,9.183e-05,2]
[347061500,1735488632162,-500.0,9.183e-05,2]
[347061501,1735488632172,-500.0,9.183e-05,2]
[347061502,1735488632181,-399.46814351,9.183e-05,2]
[347061503,1735488632190,-500.0,9.183e-05,2]
[347061504,1735488632199,-1066.5,9.183e-05,2]
[347061505,1735488632209,-816.47,9.183e-05,2]
[347061506,1735488632218,-682.01,9.183e-05,2]
[347061507,1735488632228,-500.0,9.183e-05,2]
[347061508,1735488632238,-286.18490608,9.183e-05,2]
[347061509,1735488632248,-500.0,9.184e-05,2]
[347061510,1735488632257,-500.0,9.184e-05,2]
[347061511,1735488632266,-500.0,9.184e-05,2]
[347061513,1735488632275,-338.08480224,9.184e-05,2]
[347061514,1735488632284,-500.0,9.184e-05,2]
[347061515,1735488632294,-500.0,9.184e-05,2]
[347061516,1735488632303,-264.7285068,9.184e-05,2]
[347061517,1735488632312,-500.0,9.184e-05,2]
[347061518,1735488632322,-500.0,9.184e-05,2]
[347061519,1735488632331,-500.0,9.184e-05,2]
[347061520,1735488632341,-500.0,9.184e-05,2]
[347061521,1735488632350,-453.98046587,9.184e-05,2]
[347061522,1735488632386,-46.01953413,9.184e-05,2]
[347061523,1735488632400,-500.0,9.184e-05,2]
[347061524,1735488632413,-500.0,9.184e-05,2]
[347061525,1735488632427,-500.0,9.184e-05,2]
[347061526,1735488632439,-500.0,9.184e-05,2]
[347061527,1735488632450,-500.0,9.184e-05,2]
[347061528,1735488632462,-500.0,9.184e-05,2]
[347061529,1735488632474,-500.0,9.184e-05,2]
[347061530,1735488632486,-500.0,9.184e-05,2]
[347061531,1735488632499,-500.0,9.184e-05,2]
[347061532,1735488632512,-500.0,9.184e-05,2]
[347061533,1735488632525,-500.0,9.184e-05,2]
[347061534,1735488632536,-500.0,9.184e-05,2]
[347061535,1735488632548,-500.0,9.184e-05,2]
[347061536,1735488632562,-500.0,9.184e-05,2]
[347061537,1735488632575,-500.0,9.184e-05,2]
[347061538,1735488632588,-500.0,9.184e-05,2]
[347061539,1735488632599,-500.0,9.184e-05,2]
[347061540,1735488632612,-456.48608484,9.184e-05,2]
[347061541,1735488632623,-500.0,9.184e-05,2]
[347061542,1735488632634,-500.0,9.184e-05,2]
[347061543,1735488632646,-500.0,9.184e-05,2]
[347061544,1735488632658,-500.0,9.184e-05,2]
[347061545,1735488632669,-500.0,9.184e-05,2]
[347061546,1735488632681,-500.0,9.184e-05,2]
[347061547,1735488632692,-500.0,9.184e-05,2]
[347061548,1735488632702,-568.94612313,9.184e-05,2]
[347061549,1735488632713,-500.0,9.184e-05,2]
[347061550,1735488632724,-500.0,9.184e-05,2]
[347061551,1735488632737,-500.0,9.184e-05,2]
[347061552,1735488632751,-500.0,9.184e-05,2]
[347061553,1735488632762,-500.0,9.184e-05,2]
[347061554,1735488632774,-1379.83,9.184e-05,2]
[347061555,1735488632786,-461.62830828,9.184e-05,2]
[347061556,1735488632802,-350.18169172,9.184e-05,2]
[347061557,1735488632814,-500.0,9.184e-05,2]
[347061558,1735488632827,-500.0,9.184e-05,2]
[347061559,1735488632839,-500.0,9.184e-05,2]
[347061560,1735488632851,-500.0,9.184e-05,2]
[347061561,1735488632861,-500.0,9.184e-05,2]
[347061562,1735488632870,-500.0,9.184e-05,2]
[347061563,1735488632880,-464.79531377,9.184e-05,2]
[347061564,1735488632891,-500.0,9.184e-05,2]
[347061565,1735488632903,-500.0,9.184e-05,2]
[347061566,1735488632917,-500.0,9.184e-05,2]
[347061567,1735488632929,-500.0,9.184e-05,2]
[347061568,1735488632941,-500.0,9.184e-05,2]
[347061569,1735488632951,-500.0,9.184e-05,2]
[347061570,1735488632973,-500.0,9.184e-05,2]
[347061571,1735488632988,-500.0,9.184e-05,2]
[347061572,1735488633000,-620.06814109,9.184e-05,2]
[347061573,1735488633024,-1509.65336435,9.184e-05,2]
[347061574,1735488633038,-4359.3883363,9.184e-05,2]
[347061575,1735488633058,-6828.23015826,9.184e-05,2]
[347061576,1735488633070,-500.0,9.184e-05,2]
[347061577,1735488633087,-500.0,9.184e-05,2]
[347061578,1735488633100,-555.56,9.184e-05,2]
[347061579,1735488633113,-500.0,9.184e-05,2]
[347061580,1735488633127,-500.0,9.184e-05,2]
[347061581,1735488633140,-581.47,9.184e-05,2]
[347061582,1735488633152,-500.0,9.184e-05,2]
[347061583,1735488633164,-500.0,9.184e-05,2]
[347061584,1735488633175,-500.0,9.184e-05,2]
[347061585,1735488633187,-500.0,9.184e-05,2]
[347061586,1735488633199,-500.0,9.184e-05,2]
[347061587,1735488633211,-500.0,9.184e-05,2]
[347061588,1735488633223,-503.01522744,9.184e-05,2]
[347061589,1735488633235,-584.07,9.184e-05,2]
[347061590,1735488633247,-500.0,9.184e-05,2]
[347061591,1735488633260,-502.62552808,9.184e-05,2]
[347061592,1735488633271,-503.45643319,9.184e-05,2]
[347061593,1735488633283,-500.0,9.184e-05,2]
[347061594,1735488633294,-504.58509309,9.184e-05,2]
[347061595,1735488633306,-277.99055866,9.184e-05,2]
[347061596,1735488633318,-500.0,9.184e-05,2]
[347061597,1735488633330,-500.0,9.184e-05,2]
[347061598,1735488633341,-500.0,9.184e-05,2]
[347061599,1735488633353,-500.0,9.184e-05,2]
[347061600,1735488633364,-500.0,9.184e-05,2]
[347061601,1735488633375,-500.0,9.184e-05,2]
[347061602,1735488633387,-500.0,9.184e-05,2]
[347061603,1735488633398,-500.0,9.184e-05,2]
[347061604,1735488633409,-500.0,9.184e-05,2]
[347061605,1735488633420,-500.0,9.184e-05,2]
[347061606,1735488633432,-503.58149186,9.184e-05,2]
[347061607,1735488633443,-500.0,9.184e-05,2]
[347061608,1735488633454,-500.0,9.184e-05,2]
[347061609,1735488633465,-500.0,9.184e-05,2]
[347061610,1735488633477,-500.0,9.184e-05,2]
[347061611,1735488633489,-507.77664109,9.184e-05,2]
[347061612,1735488633500,-500.0,9.184e-05,2]
[347061613,1735488633512,-500.0,9.184e-05,2]
[347061614,1735488633523,-500.0,9.184e-05,2]
[347061615,1735488633535,-500.0,9.184e-05,2]
[347061616,1735488633547,-500.0,9.184e-05,2]
[347061617,1735488633677,-500.0,9.184e-05,2]
[347061618,1735488633693,-500.0,9.184e-05,2]
[347061619,1735488633703,-500.0,9.184e-05,2]
[347061620,1735488633712,-500.0,9.184e-05,2]
[347061621,1735488633722,-500.0,9.184e-05,2]
[347061622,1735488633735,-500.0,9.184e-05,2]
[347061623,1735488633744,-500.0,9.184e-05,2]
[347061624,1735488633755,-160.10334479,9.184e-05,2]
[347061625,1735488633765,-500.0,9.185e-05,2]
[347061626,1735488633774,-500.0,9.185e-05,2]
[347061627,1735488633784,-500.50664382,9.185e-05,2]
[347061628,1735488633794,-500.0,9.185e-05,2]
[347061629,1735488633803,-500.0,9.185e-05,2]
[347061630,1735488633812,-500.0,9.185e-05,2]
[347061631,1735488633823,-500.0,9.185e-05,2]
[347061632,1735488633833,-500.0,9.185e-05,2]
[347061633,1735488633843,-500.0,9.185e-05,2]
[347061634,1735488633853,-500.0,9.185e-05,2]
[347061635,1735488633862,-500.0,9.185e-05,2]
[347061636,1735488633872,-500.0,9.185e-05,2]
[347061637,1735488633882,-500.0,9.185e-05,2]
[347061638,1735488633891,-513.28845624,9.185e-05,2]
[347061639,1735488633901,-500.0,9.185e-05,2]
[347061640,1735488633911,-500.0,9.185e-05,2]
[347061641,1735488633920,-500.0,9.185e-05,2]
[347061642,1735488633930,-2677.29,9.186e-05,2]
[347061643,1735488633939,-500.0,9.186e-05,2]
[347061644,1735488633949,-3191.68,9.189e-05,2]
[347061645,1735488633959,-500.0,9.457e-05,2]
[347061646,1735488633968,-500.0,9.457e-05,2]
[347061647,1735488633978,-1521.15,9.457e-05,2]
[347061648,1735488633989,-500.0,9.457e-05,2]
[347061649,1735488633999,-500.0,9.457e-05,2]
[347061650,1735488634009,-500.0,9.457e-05,2]
[347061651,1735488634019,-1066.5,9.457e-05,2]
[347061652,1735488634029,-816.47,9.457e-05,2]
[347061653,1735488634038,-682.01,9.457e-05,2]
[347061654,1735488634048,-500.0,9.457e-05,2]
[347061655,1735488634057,-500.0,9.458e-05,2]
[347061656,1735488634067,-500.0,9.458e-05,2]
[347061657,1735488634077,-190.55959029,9.458e-05,2]
[347061658,1735488634087,-500.0,9.458e-05,2]
[347061659,1735488634096,-500.0,9.458e-05,2]
[347061660,1735488634105,-500.0,9.458e-05,2]
[347061661,1735488634115,-500.0,9.458e-05,2]
[347061662,1735488634125,-500.0,9.458e-05,2]
[347061663,1735488634135,-384.47541916,9.458e-05,2]
[347061664,1735488634144,-500.0,9.458e-05,2]
[347061665,1735488634154,-185.8,9.458e-05,2]
[347061666,1735488634163,-500.0,9.458e-05,2]
[347061667,1735488634172,-500.0,9.458e-05,2]
[347061668,1735488634182,-500.0,9.458e-05,2]
[347061669,1735488634192,-500.0,9.458e-05,2]
[347061670,1735488634201,-500.0,9.458e-05,2]
[347061671,1735488634211,-500.0,9.458e-05,2]
[347061672,1735488634220,-500.0,9.458e-05,2]
[347061673,1735488634230,-500.0,9.458e-05,2]
[347061674,1735488634241,-500.0,9.458e-05,2]
[347061675,1735488634251,-500.0,9.458e-05,2]
[347061676,1735488634260,-500.0,9.458e-05,2]
[347061677,1735488634270,-500.0,9.458e-05,2]
[347061678,1735488634280,-500.0,9.458e-05,2]
[347061679,1735488634290,-500.0,9.458e-05,2]
[347061680,1735488634299,-500.0,9.458e-05,2]
[347061681,1735488634309,-500.0,9.458e-05,2]
[347061682,1735488634319,-400.0,9.458e-05,2]
[347061683,1735488634328,-500.0,9.458e-05,2]
[347061684,1735488634338,-500.0,9.458e-05,2]
[347061685,1735488634348,-500.0,9.458e-05,2]
[347061686,1735488634361,-1379.83,9.458e-05,2]
[347061687,1735488634371,-811.81,9.458e-05,2]
[347061688,1735488634380,-500.0,9.458e-05,2]
[347061689,1735488634390,-500.0,9.458e-05,2]
[347061690,1735488634400,-500.0,9.458e-05,2]
[347061691,1735488634410,-500.0,9.458e-05,2]
[347061692,1735488634419,-500.0,9.458e-05,2]
[347061693,1735488634429,-500.0,9.458e-05,2]
[347061694,1735488634438,-500.0,9.458e-05,2]
[347061695,1735488634448,-500.0,9.458e-05,2]
[347061696,1735488634458,-500.0,9.458e-05,2]
[347061697,1735488634468,-13317.34,9.458e-05,2]
[347061698,1735488634478,-500.0,9.458e-05,2]
[347061699,1735488634488,-555.56,9.458e-05,2]
[347061700,1735488634497,-500.0,9.458e-05,2]
[347061701,1735488634507,-581.47,9.458e-05,2]
[347061702,1735488634517,-500.0,9.458e-05,2]
[347061703,1735488634526,-500.0,9.458e-05,2]
[347061704,1735488634536,-500.0,9.458e-05,2]
[347061705,1735488634545,-500.0,9.458e-05,2]
[347061706,1735488634554,-500.0,9.458e-05,2]
[347061707,1735488634564,-584.07,9.458e-05,2]
[347061708,1735488634573,-500.0,9.458e-05,2]
[347061709,1735488634583,-500.0,9.458e-05,2]
[347061710,1735488634592,-500.0,9.458e-05,2]
[347061711,1735488634601,-500.0,9.458e-05,2]
[347061712,1735488634611,-500.0,9.458e-05,2]
[347061713,1735488634620,-500.0,9.458e-05,2]
[347061714,1735488634629,-500.0,9.458e-05,2]
[347061715,1735488634639,-500.0,9.458e-05,2]
[347061716,1735488634648,-500.0,9.458e-05,2]
[347061717,1735488634657,-500.0,9.458e-05,2]
[347061718,1735488634667,-500.0,9.458e-05,2]
[347061719,1735488634676,-500.0,9.458e-05,2]
[347061720,1735488634686,-500.0,9.458e-05,2]
[347061721,1735488634695,-500.0,9.458e-05,2]
[347061722,1735488634704,-500.0,9.458e-05,2]
[347061723,1735488634714,-507.70849326,9.458e-05,2]
[347061724,1735488634724,-500.0,9.458e-05,2]
[347061725,1735488634733,-500.0,9.458e-05,2]
[347061726,1735488634743,-645.01996906,9.459e-05,2]
[347061727,1735488634753,-500.0,9.459e-05,2]
[347061728,1735488634763,-500.0,9.459e-05,2]
[347061729,1735488634772,-500.0,9.459e-05,2]
[347061730,1735488634781,-2677.29,9.46e-05,2]
[347061731,1735488634791,-500.0,9.46e-05,2]
[347061732,1735488634801,-3191.68,9.463e-05,2]
[347061733,1735488634811,-500.0,9.731e-05,2]
[347061734,1735488634821,-500.0,9.731e-05,2]
[347061735,1735488634830,-1521.15,9.731e-05,2]
[347061736,1735488634839,-1066.5,9.731e-05,2]
[347061737,1735488634849,-816.47,9.731e-05,2]
[347061738,1735488634859,-682.01,9.731e-05,2]
[347061739,1735488634868,-500.0,9.731e-05,2]
[347061740,1735488634878,-211.39,9.732e-05,2]
[347061741,1735488634887,-500.0,9.732e-05,2]
[347061742,1735488634897,-257.53,9.732e-05,2]
[347061743,1735488634907,-500.0,9.732e-05,2]
[347061744,1735488634916,-500.0,9.732e-05,2]
[347061745,1735488634925,-500.0,9.732e-05,2]
[347061746,1735488634935,-500.0,9.732e-05,2]
[347061747,1735488634944,-500.0,9.732e-05,2]
[347061748,1735488634954,-500.0,9.732e-05,2]
[347061749,1735488634963,-500.0,9.732e-05,2]
[347061750,1735488634973,-500.0,9.732e-05,2]
[347061751,1735488634983,-500.0,9.732e-05,2]
[347061752,1735488634993,-500.0,9.732e-05,2]
[347061753,1735488635003,-500.0,9.732e-05,2]
[347061754,1735488635012,-500.0,9.732e-05,2]
[347061755,1735488635022,-500.0,9.732e-05,2]
[347061756,1735488635032,-500.0,9.732e-05,2]
[347061757,1735488635041,-500.0,9.732e-05,2]
[347061758,1735488635050,-500.0,9.732e-05,2]
[347061759,1735488635059,-253.83357252,9.732e-05,2]
[347061760,1735488635068,-500.0,9.732e-05,2]
[347061761,1735488635077,-500.0,9.732e-05,2]
[347061762,1735488635095,-500.0,9.732e-05,2]
[347061763,1735488635106,-462.20832098,9.732e-05,2]
[347061764,1735488635115,-500.0,9.732e-05,2]
[347061765,1735488635125,-1379.83,9.732e-05,2]
[347061766,1735488635134,-811.81,9.732e-05,2]
[347061767,1735488635144,-500.0,9.732e-05,2]
[347061768,1735488635153,-500.0,9.732e-05,2]
[347061769,1735488635164,-500.0,9.732e-05,2]
[347061770,1735488635173,-500.0,9.732e-05,2]
[347061771,1735488635183,-13317.34,9.732e-05,2]
[347061772,1735488635192,-555.56,9.732e-05,2]
[347061773,1735488635202,-500.0,9.732e-05,2]
[347061774,1735488635212,-581.47,9.732e-05,2]
[347061775,1735488635222,-500.0,9.732e-05,2]
[347061776,1735488635232,-500.0,9.732e-05,2]
[347061777,1735488635244,-500.0,9.732e-05,2]
[347061778,1735488635256,-500.0,9.732e-05,2]
[347061779,1735488635265,-500.0,9.732e-05,2]
[347061780,1735488635275,-584.07,9.732e-05,2]
[347061781,1735488635285,-500.0,9.732e-05,2]
[347061782,1735488635294,-500.0,9.732e-05,2]
[347061783,1735488635304,-500.0,9.732e-05,2]
[347061784,1735488635313,-500.0,9.732e-05,2]
[347061785,1735488635323,-622.44663491,9.732e-05,2]
[347061786,1735488635333,-500.0,9.732e-05,2]
[347061787,1735488635343,-500.0,9.732e-05,2]
[347061788,1735488635353,-500.0,9.732e-05,2]
[347061789,1735488635362,-500.0,9.732e-05,2]
[347061790,1735488635372,-500.0,9.732e-05,2]
[347061791,1735488635382,-500.0,9.732e-05,2]
[347061792,1735488635391,-500.0,9.732e-05,2]
[347061793,1735488635401,-500.0,9.732e-05,2]
[347061794,1735488635410,-2677.29,9.734e-05,2]
[347061795,1735488635420,-500.0,9.734e-05,2]
[347061796,1735488635429,-3191.68,9.737e-05,2]
[347061797,1735488635439,-553.32232247,9.78e-05,2]
[347061798,1735488635448,-32545.41385628,9.9e-05,2]
[347061799,1735488635458,-9921.48911,9.9e-05,2]
[347061800,1735488635467,-500.0,9.973e-05,2]
[347061801,1735488635477,-142613.19481658,0.0001,2]
[347061812,1735488638035,-437.84131832,9.184e-05,2]
[347061814,1735488638045,-25.75869168,0.0001,2]
[347061815,1735488638056,-265.35982778,0.0001,2]
[347061816,1735488638068,-483428.86651876,0.0001,2]
[347061818,1735488638077,-500.0,0.00010005,2]
[347061819,1735488638087,-500.0,0.00010005,2]
[347061820,1735488638096,-1521.15,0.00010005,2]
[347061822,1735488638106,-1066.5,0.00010005,2]
[347061823,1735488638115,-816.47,0.00010005,2]
[347061825,1735488638125,-682.01,0.00010005,2]
[347061827,1735488638134,-500.0,0.00010005,2]
[347061829,1735488638143,-500.0,0.00010006,2]
[347061831,1735488638153,-500.0,0.00010006,2]
[347061833,1735488638162,-616.74994258,0.00010006,2]
[347061835,1735488638274,-500.0,0.00010006,2]
[347061836,1735488638283,-500.0,0.00010006,2]
[347061837,1735488638293,-500.0,0.00010006,2]
[347061838,1735488638302,-500.0,0.00010006,2]
[347061839,1735488638311,-277.38,0.00010006,2]
[347061840,1735488638321,-500.0,0.00010006,2]
[347061841,1735488638330,-500.0,0.00010006,2]
[347061842,1735488638340,-500.0,0.00010006,2]
[347061843,1735488638349,-500.0,0.00010006,2]
[347061844,1735488638358,-500.0,0.00010006,2]
[347061845,1735488638369,-500.0,0.00010006,2]
[347061846,1735488638378,-404.2965444,0.00010006,2]
[347061847,1735488638389,-500.0,0.00010006,2]
[347061848,1735488638399,-500.0,0.00010006,2]
[347061849,1735488638408,-500.0,0.00010006,2]
[347061850,1735488638418,-500.0,0.00010006,2]
[347061851,1735488638427,-500.0,0.00010006,2]
[347061852,1735488638436,-500.0,0.00010006,2]
[347061853,1735488638445,-1379.83,0.00010006,2]
[347061854,1735488638455,-811.81,0.00010006,2]
[347061855,1735488638464,-500.0,0.00010006,2]
[347061856,1735488638475,-500.0,0.00010006,2]
[347061857,1735488638485,-500.0,0.00010006,2]
[347061858,1735488638497,-500.0,0.00010006,2]
[347061859,1735488638506,-13317.34,0.00010006,2]
[347061860,1735488638516,-555.56,0.00010006,2]
[347061861,1735488638525,-581.47,0.00010006,2]
[347061862,1735488638534,-500.0,0.00010006,2]
[347061863,1735488638543,-500.0,0.00010006,2]
[347061864,1735488638552,-500.0,0.00010006,2]
[347061865,1735488638561,-166.72560518,0.00010006,2]
[347061866,1735488638570,-584.07,0.00010006,2]
[347061867,1735488638579,-500.0,0.00010006,2]
[347061868,1735488638589,-500.0,0.00010006,2]
[347061869,1735488638599,-500.0,0.00010006,2]
[347061870,1735488638608,-500.0,0.00010006,2]
[347061871,1735488638617,-500.0,0.00010006,2]
[347061872,1735488638627,-502.03136647,0.00010006,2]
[347061873,1735488638636,-500.0,0.00010006,2]
[347061874,1735488638646,-500.0,0.00010006,2]
[347061875,1735488638655,-500.0,0.00010006,2]
[347061876,1735488638664,-2677.29,0.00010008,2]
[347061877,1735488638675,-500.0,0.00010008,2]
[347061878,1735488638685,-3191.68,0.00010011,2]
[347061879,1735488638694,-420.0,0.000101,2]
[347061880,1735488638703,-500.0,0.00010279,2]
[347061881,1735488638713,-500.0,0.00010279,2]
[347061882,1735488638722,-1521.15,0.00010279,2]
[347061883,1735488638731,-1066.5,0.00010279,2]
[347061884,1735488638741,-816.47,0.00010279,2]
[347061885,1735488638751,-682.01,0.00010279,2]
[347061886,1735488638761,-500.0,0.00010279,2]
[347061887,1735488638773,-500.0,0.0001028,2]
[347061888,1735488638782,-500.0,0.0001028,2]
[347061889,1735488638792,-500.0,0.0001028,2]
[347061890,1735488638802,-500.0,0.0001028,2]
[347061891,1735488638811,-500.0,0.0001028,2]
[347061892,1735488638821,-500.0,0.0001028,2]
[347061893,1735488638831,-500.0,0.0001028,2]
[347061894,1735488638840,-500.0,0.0001028,2]
[347061895,1735488638850,-500.0,0.0001028,2]
[347061896,1735488638859,-500.0,0.0001028,2]
[347061897,1735488638868,-500.0,0.0001028,2]
[347061898,1735488638878,-500.0,0.0001028,2]
[347061899,1735488638887,-500.0,0.0001028,2]
[347061900,1735488638896,-500.0,0.0001028,2]
[347061901,1735488638906,-500.0,0.0001028,2]
[347061902,1735488638916,-500.0,0.0001028,2]
[347061903,1735488638925,-500.0,0.0001028,2]
[347061904,1735488638935,-500.0,0.0001028,2]
[347061905,1735488638944,-811.81,0.0001028,2]
[347061906,1735488638954,-1379.83,0.0001028,2]
[347061907,1735488638964,-500.0,0.0001028,2]
[347061908,1735488638974,-252.7986632,0.0001028,2]
[347061909,1735488638983,-500.0,0.0001028,2]
[347061910,1735488638993,-500.0,0.0001028,2]
[347061911,1735488639003,-13317.34,0.0001028,2]
[347061912,1735488639013,-555.56,0.0001028,2]
[347061913,1735488639023,-581.47,0.0001028,2]
[347061914,1735488639032,-500.0,0.0001028,2]
[347061915,1735488639042,-500.0,0.0001028,2]
[347061916,1735488639051,-500.0,0.0001028,2]
[347061917,1735488639060,-584.07,0.0001028,2]
[347061918,1735488639070,-500.0,0.0001028,2]
[347061919,1735488639079,-407.83558023,0.0001028,2]
[347061920,1735488639089,-500.0,0.0001028,2]
[347061921,1735488639098,-500.0,0.0001028,2]
[347061922,1735488639108,-500.0,0.0001028,2]
[347061923,1735488639118,-500.0,0.0001028,2]
[347061924,1735488639127,-500.0,0.0001028,2]
[347061925,1735488639137,-500.0,0.0001028,2]
[347061926,1735488639146,-2677.29,0.00010282,2]
[347061927,1735488639156,-500.0,0.00010282,2]
[347061928,1735488639165,-3191.68,0.00010285,2]
[347061929,1735488639174,-1000.0,0.00010521,2]
[347061930,1735488639183,-203.11272096,0.00010553,2]
[347061931,1735488639193,-500.0,0.00010553,2]
[347061932,1735488639203,-1521.15,0.00010553,2]
[347061933,1735488639212,-1066.5,0.00010553,2]
[347061934,1735488639222,-816.47,0.00010553,2]
[347061935,1735488639232,-682.01,0.00010553,2]
[347061936,1735488639242,-500.0,0.00010553,2]
[347061937,1735488639253,-500.0,0.00010554,2]
[347061938,1735488639262,-500.0,0.00010554,2]
[347061939,1735488639271,-500.0,0.00010554,2]
[347061940,1735488639280,-500.0,0.00010554,2]
[347061941,1735488639290,-500.0,0.00010554,2]
[347061942,1735488639299,-500.0,0.00010554,2]
[347061943,1735488639308,-500.0,0.00010554,2]
[347061944,1735488639318,-500.0,0.00010554,2]
[347061945,1735488639327,-500.0,0.00010554,2]
[347061946,1735488639338,-500.0,0.00010554,2]
[347061947,1735488639348,-500.0,0.00010554,2]
[347061948,1735488639357,-498.41684228,0.00010554,2]
[347061949,1735488639367,-500.0,0.00010554,2]
[347061950,1735488639377,-500.0,0.00010554,2]
[347061951,1735488639387,-500.0,0.00010554,2]
[347061952,1735488639397,-500.0,0.00010554,2]
[347061953,1735488639407,-500.0,0.00010554,2]
[347061954,1735488639417,-500.0,0.00010554,2]
[347061955,1735488639426,-811.81,0.00010554,2]
[347061956,1735488639436,-1379.83,0.00010554,2]
[347061957,1735488639445,-172.89038527,0.00010554,2]
[347061958,1735488639487,-327.10961473,0.00010554,2]
[347061959,1735488639496,-500.0,0.00010554,2]
[347061960,1735488639506,-288.19667958,0.00010554,2]
[347061961,1735488639516,-4674.5701566,0.00010554,2]
[347061963,1735488639613,-8642.7698434,0.00010554,2]
[347061964,1735488639623,-555.56,0.00010554,2]
[347061965,1735488639633,-581.47,0.00010554,2]
[347061966,1735488639642,-500.0,0.00010554,2]
[347061967,1735488639652,-500.0,0.00010554,2]
[347061968,1735488639661,-500.0,0.00010554,2]
[347061969,1735488639671,-584.07,0.00010554,2]
[347061970,1735488639681,-500.0,0.00010554,2]
[347061971,1735488639690,-269.40812539,0.00010554,2]
[347061972,1735488639700,-500.0,0.00010554,2]
[347061973,1735488639709,-500.0,0.00010554,2]
[347061974,1735488639719,-500.0,0.00010554,2]
[347061976,1735488639728,-500.0,0.00010554,2]
[347061978,1735488639738,-500.0,0.00010554,2]
[347061980,1735488639748,-2677.29,0.00010556,2]
[347061982,1735488639757,-500.0,0.00010556,2]
[347061984,1735488639766,-3191.68,0.00010559,2]
[347061986,1735488639776,-500.0,0.00010561,2]
[347061988,1735488639785,-500.0,0.00010827,2]
[347061990,1735488639795,-1521.15,0.00010827,2]
[347061992,1735488639805,-1066.5,0.00010827,2]
[347061994,1735488639815,-816.47,0.00010827,2]
[347061996,1735488639825,-682.01,0.00010827,2]
[347061998,1735488639834,-500.0,0.00010827,2]
[347062000,1735488639844,-500.0,0.00010828,2]
[347062003,1735488639854,-500.0,0.00010828,2]
[347062005,1735488639863,-500.0,0.00010828,2]
[347062006,1735488639872,-500.0,0.00010828,2]
[347062008,1735488639881,-225.13725909,0.00010828,2]
[347062010,1735488639890,-500.0,0.00010828,2]
[347062012,1735488639899,-500.0,0.00010828,2]
[347062014,1735488639909,-500.0,0.00010828,2]
[347062017,1735488639919,-500.0,0.00010828,2]
[347062019,1735488639928,-500.0,0.00010828,2]
[347062021,1735488639937,-500.0,0.00010828,2]
[347062023,1735488639946,-357.93270027,0.00010828,2]
[347062025,1735488639955,-500.0,0.00010828,2]
[347062026,1735488639964,-500.0,0.00010828,2]
[347062029,1735488639977,-500.0,0.00010828,2]
[347062031,1735488639986,-500.0,0.00010828,2]
[347062033,1735488639996,-500.0,0.00010828,2]
[347062035,1735488640005,-811.81,0.00010828,2]
[347062037,1735488640015,-1379.83,0.00010828,2]
[347062039,1735488640024,-500.0,0.00010828,2]
[347062041,1735488640033,-500.0,0.00010828,2]
[347062043,1735488640042,-13317.34,0.00010828,2]
[347062045,1735488640051,-555.56,0.00010828,2]